[Event "Titled Tuesday Blitz June 6 Late 2023"]
[White "Ward, Ieuan C"]
[Black "Baches Garcia, Guillermo"]
[WhiteFideId "406627"]
[BlackFideId "2209764"]
[WhiteElo "2315"]
[BlackElo "2478"]
[Result "0-1"]
[Round "5"]
[TimeControl "180+2"]
[Date "2023.06.07"]
[WhiteClock "0:00:13"]
[BlackClock "0:00:59"]
[Board "128"]

1. d4 {[%clk 0:03:00]}  d5 {[%clk 0:02:59]} 2. c4 {[%clk 0:03:00]}  e6 {[%clk 0:03:00]} 3. Nc3 {[%clk 0:03:00]}  h6 {[%clk 0:03:00]} 4. e4 {[%clk 0:02:55]}  dxe4 {[%clk 0:02:56]} 5. Nxe4 {[%clk 0:02:55]}  Bb4+ {[%clk 0:02:56]} 6. Nc3 {[%clk 0:02:51]}  c5 {[%clk 0:02:55]} 7. Nf3 {[%clk 0:02:46]}  Nf6 {[%clk 0:02:44]} 8. Be3 {[%clk 0:02:18]}  Qa5 {[%clk 0:02:35]} 9. Qc2 {[%clk 0:02:08]}  Ne4 {[%clk 0:02:22]} 10. Rc1 {[%clk 0:02:08]}  cxd4 {[%clk 0:02:04]} 11. Bxd4 {[%clk 0:01:59]}  Nf6 {[%clk 0:01:57]} 12. a3 {[%clk 0:01:50]}  Be7 {[%clk 0:01:55]} 13. Be2 {[%clk 0:01:33]}  Nc6 {[%clk 0:01:54]} 14. Be3 {[%clk 0:01:29]}  O-O {[%clk 0:01:46]} 15. O-O {[%clk 0:01:29]}  e5 {[%clk 0:01:46]} 16. h3 {[%clk 0:01:28]}  Rd8 {[%clk 0:01:41]} 17. Rfd1 {[%clk 0:01:25]}  Be6 {[%clk 0:01:40]} 18. b4 {[%clk 0:00:58]}  Qxa3 {[%clk 0:01:30]} 19. Ra1 {[%clk 0:00:43]}  Nxb4 {[%clk 0:01:19]} 20. Rxd8+ {[%clk 0:00:28]}  Rxd8 {[%clk 0:01:18]} 21. Rxa3 {[%clk 0:00:23]}  Nxc2 {[%clk 0:01:17]} 22. Rxa7 {[%clk 0:00:23]}  Nxe3 {[%clk 0:01:14]} 23. fxe3 {[%clk 0:00:23]}  Bc5 {[%clk 0:01:08]} 24. Rxb7 {[%clk 0:00:22]}  Bxe3+ {[%clk 0:01:08]} 25. Kh2 {[%clk 0:00:20]}  e4 {[%clk 0:01:02]} 26. Ne1 {[%clk 0:00:13]}  Bd2 {[%clk 0:00:59]} 0-1


[Site "https://www.chess.com"]

[Event "Titled Tuesday Blitz June 6 Late 2023"]
[White "Celestino, Rafael Teixeira"]
[Black "Ismayil, Malak"]
[WhiteFideId "2108925"]
[BlackFideId "13412604"]
[WhiteElo "2308"]
[BlackElo "1868"]
[Result "0-1"]
[Round "5"]
[TimeControl "180+2"]
[Date "2023.06.07"]
[WhiteClock "0:00:28"]
[BlackClock "0:00:10"]
[Board "129"]

1. e4 {[%clk 0:03:00]}  e5 {[%clk 0:02:58]} 2. Nf3 {[%clk 0:02:59]}  Nc6 {[%clk 0:02:57]} 3. Bc4 {[%clk 0:02:59]}  Bc5 {[%clk 0:02:56]} 4. c3 {[%clk 0:02:57]}  Nf6 {[%clk 0:02:56]} 5. d3 {[%clk 0:02:58]}  O-O {[%clk 0:02:56]} 6. O-O {[%clk 0:02:58]}  h6 {[%clk 0:02:56]} 7. Be3 {[%clk 0:02:58]}  Bb6 {[%clk 0:02:56]} 8. a4 {[%clk 0:02:58]}  d6 {[%clk 0:02:56]} 9. b4 {[%clk 0:02:58]}  Bxe3 {[%clk 0:02:48]} 10. fxe3 {[%clk 0:02:58]}  Be6 {[%clk 0:02:48]} 11. Nbd2 {[%clk 0:02:58]}  d5 {[%clk 0:02:47]} 12. exd5 {[%clk 0:02:57]}  Nxd5 {[%clk 0:02:47]} 13. Bxd5 {[%clk 0:02:56]}  Qxd5 {[%clk 0:02:48]} 14. Ne4 {[%clk 0:02:40]}  Rad8 {[%clk 0:02:40]} 15. Nc5 {[%clk 0:02:39]}  b6 {[%clk 0:02:38]} 16. Nxe6 {[%clk 0:02:39]}  Qxe6 {[%clk 0:02:34]} 17. d4 {[%clk 0:02:39]}  exd4 {[%clk 0:02:31]} 18. exd4 {[%clk 0:02:39]}  Rd6 {[%clk 0:02:19]} 19. Qd3 {[%clk 0:02:33]}  Rfd8 {[%clk 0:02:14]} 20. Rae1 {[%clk 0:02:26]}  Qb3 {[%clk 0:02:08]} 21. b5 {[%clk 0:01:27]}  Na5 {[%clk 0:01:51]} 22. Ne5 {[%clk 0:01:21]}  f6 {[%clk 0:01:46]} 23. Ng6 {[%clk 0:01:11]}  Qc4 {[%clk 0:01:33]} 24. Qe3 {[%clk 0:01:05]}  Qf7 {[%clk 0:01:28]} 25. Ne7+ {[%clk 0:01:03]}  Kh8 {[%clk 0:01:24]} 26. Nf5 {[%clk 0:01:04]}  R6d7 {[%clk 0:01:23]} 27. Qe6 {[%clk 0:00:59]}  Qxe6 {[%clk 0:01:11]} 28. Rxe6 {[%clk 0:01:00]}  Nc4 {[%clk 0:01:11]} 29. Rf2 {[%clk 0:00:51]}  Nd6 {[%clk 0:01:07]} 30. Ne7 {[%clk 0:00:46]}  Kh7 {[%clk 0:00:56]} 31. Nc6 {[%clk 0:00:45]}  Ra8 {[%clk 0:00:53]} 32. Rfe2 {[%clk 0:00:44]}  a6 {[%clk 0:00:53]} 33. Re7 {[%clk 0:00:44]}  Rxe7 {[%clk 0:00:51]} 34. Rxe7 {[%clk 0:00:45]}  axb5 {[%clk 0:00:51]} 35. axb5 {[%clk 0:00:45]}  Nxb5 {[%clk 0:00:52]} 36. h4 {[%clk 0:00:43]}  Ra1+ {[%clk 0:00:45]} 37. Kh2 {[%clk 0:00:42]}  Rc1 {[%clk 0:00:46]} 38. Nd8 {[%clk 0:00:41]}  Rxc3 {[%clk 0:00:31]} 39. h5 {[%clk 0:00:41]}  Nxd4 {[%clk 0:00:25]} 40. Re8 {[%clk 0:00:30]}  Rc5 {[%clk 0:00:16]} 41. g4 {[%clk 0:00:27]}  Re5 {[%clk 0:00:16]} 42. Rf8 {[%clk 0:00:26]}  Ne6 {[%clk 0:00:14]} 43. Re8 {[%clk 0:00:26]}  Nxd8 {[%clk 0:00:13]} 44. Rxd8 {[%clk 0:00:27]}  Re3 {[%clk 0:00:12]} 45. Rc8 {[%clk 0:00:27]}  Rc3 {[%clk 0:00:12]} 46. Kg2 {[%clk 0:00:27]}  b5 {[%clk 0:00:12]} 47. Kf2 {[%clk 0:00:27]}  b4 {[%clk 0:00:12]} 48. Ke2 {[%clk 0:00:27]}  c5 {[%clk 0:00:11]} 49. Kd2 {[%clk 0:00:28]}  Rc4 {[%clk 0:00:12]} 50. Kd3 {[%clk 0:00:27]}  Rd4+ {[%clk 0:00:11]} 51. Ke3 {[%clk 0:00:27]}  Rxg4 {[%clk 0:00:11]} 52. Rxc5 {[%clk 0:00:27]}  Rg5 {[%clk 0:00:11]} 53. Rc4 {[%clk 0:00:27]}  b3 {[%clk 0:00:10]} 54. Rb4 {[%clk 0:00:28]}  Rxh5 {[%clk 0:00:10]} 55. Kf4 {[%clk 0:00:28]}  Rh4+ {[%clk 0:00:10]} 0-1


[Site "https://www.chess.com"]

[Event "Titled Tuesday Blitz June 6 Late 2023"]
[White "Holtel, Jasper"]
[Black "Shapiro, Viktor"]
[WhiteFideId "12956376"]
[BlackFideId "4175700"]
[WhiteElo "2412"]
[BlackElo "2212"]
[Result "0-1"]
[Round "5"]
[TimeControl "180+2"]
[Date "2023.06.07"]
[WhiteClock "0:00:22"]
[BlackClock "0:01:05"]
[Board "131"]

1. e4 {[%clk 0:03:00]}  c5 {[%clk 0:02:54]} 2. Be2 {[%clk 0:03:00]}  g6 {[%clk 0:02:52]} 3. f4 {[%clk 0:03:00]}  Bg7 {[%clk 0:02:53]} 4. Nf3 {[%clk 0:03:00]}  Nc6 {[%clk 0:02:53]} 5. O-O {[%clk 0:03:00]}  e6 {[%clk 0:02:53]} 6. d3 {[%clk 0:03:00]}  d5 {[%clk 0:02:53]} 7. c3 {[%clk 0:03:01]}  Nge7 {[%clk 0:02:50]} 8. Be3 {[%clk 0:02:51]}  b6 {[%clk 0:02:44]} 9. e5 {[%clk 0:02:45]}  Nf5 {[%clk 0:02:41]} 10. Bf2 {[%clk 0:02:45]}  h5 {[%clk 0:02:41]} 11. Na3 {[%clk 0:02:43]}  O-O {[%clk 0:02:39]} 12. d4 {[%clk 0:02:39]}  cxd4 {[%clk 0:02:31]} 13. cxd4 {[%clk 0:02:40]}  Bd7 {[%clk 0:02:31]} 14. Nc2 {[%clk 0:02:39]}  Rc8 {[%clk 0:02:29]} 15. Ne3 {[%clk 0:02:39]}  Nce7 {[%clk 0:02:29]} 16. Nxf5 {[%clk 0:02:39]}  Nxf5 {[%clk 0:02:29]} 17. Qd2 {[%clk 0:02:34]}  Qc7 {[%clk 0:02:12]} 18. Rac1 {[%clk 0:02:32]}  Qb7 {[%clk 0:02:08]} 19. h3 {[%clk 0:02:31]}  a5 {[%clk 0:01:54]} 20. Nh4 {[%clk 0:02:15]}  Nxh4 {[%clk 0:01:48]} 21. Bxh4 {[%clk 0:02:16]}  Rxc1 {[%clk 0:01:32]} 22. Rxc1 {[%clk 0:02:16]}  Rc8 {[%clk 0:01:33]} 23. Be7 {[%clk 0:02:12]}  Rxc1+ {[%clk 0:01:24]} 24. Qxc1 {[%clk 0:02:12]}  Bb5 {[%clk 0:01:23]} 25. Bxb5 {[%clk 0:02:07]}  Qxe7 {[%clk 0:01:22]} 26. a3 {[%clk 0:01:53]}  Qh4 {[%clk 0:01:18]} 27. Kh2 {[%clk 0:01:17]}  Qf2 {[%clk 0:01:16]} 28. Be8 {[%clk 0:00:51]}  Bh6 {[%clk 0:01:13]} 29. Qg1 {[%clk 0:00:39]}  Bxf4+ {[%clk 0:01:08]} 30. Kh1 {[%clk 0:00:39]}  Qg3 {[%clk 0:01:09]} 31. b4 {[%clk 0:00:33]}  axb4 {[%clk 0:01:08]} 32. axb4 {[%clk 0:00:34]}  g5 {[%clk 0:01:07]} 33. b5 {[%clk 0:00:31]}  g4 {[%clk 0:01:07]} 34. Bc6 {[%clk 0:00:22]}  Kf8 {[%clk 0:01:05]} 0-1


[Site "https://www.chess.com"]

[Event "Titled Tuesday Blitz June 6 Late 2023"]
[White "zsizsi99"]
[Black "Narva, Triin"]
[BlackFideId "4502680"]
[WhiteElo "2413"]
[BlackElo "1976"]
[Result "1-0"]
[Round "5"]
[TimeControl "180+2"]
[Date "2023.06.07"]
[WhiteClock "0:00:56"]
[BlackClock "0:00:02"]
[Board "135"]

1. e4 {[%clk 0:02:56]}  d5 {[%clk 0:02:59]} 2. exd5 {[%clk 0:02:55]}  Qxd5 {[%clk 0:03:00]} 3. Nc3 {[%clk 0:02:55]}  Qd6 {[%clk 0:03:01]} 4. d4 {[%clk 0:02:56]}  Nf6 {[%clk 0:03:01]} 5. Bc4 {[%clk 0:02:54]}  a6 {[%clk 0:03:01]} 6. Nf3 {[%clk 0:02:51]}  Bg4 {[%clk 0:03:00]} 7. Be3 {[%clk 0:02:49]}  Nc6 {[%clk 0:02:53]} 8. Qe2 {[%clk 0:02:46]}  e6 {[%clk 0:02:46]} 9. O-O-O {[%clk 0:02:46]}  O-O-O {[%clk 0:02:46]} 10. h3 {[%clk 0:02:43]}  Bh5 {[%clk 0:02:40]} 11. g4 {[%clk 0:02:40]}  Bg6 {[%clk 0:02:40]} 12. h4 {[%clk 0:02:04]}  Nb4 {[%clk 0:02:19]} 13. Bb3 {[%clk 0:01:59]}  h5 {[%clk 0:02:17]} 14. g5 {[%clk 0:01:55]}  Nfd5 {[%clk 0:02:16]} 15. Ne5 {[%clk 0:01:54]}  Nxc3 {[%clk 0:02:10]} 16. bxc3 {[%clk 0:01:54]}  Nd5 {[%clk 0:01:47]} 17. Qd2 {[%clk 0:01:53]}  Qa3+ {[%clk 0:01:41]} 18. Kb1 {[%clk 0:01:53]}  Nxe3 {[%clk 0:00:56]} 19. Qxe3 {[%clk 0:01:40]}  Bf5 {[%clk 0:00:25]} 20. Nxf7 {[%clk 0:01:37]}  Rd6 {[%clk 0:00:21]} 21. Nxd6+ {[%clk 0:01:12]}  Bxd6 {[%clk 0:00:22]} 22. Bxe6+ {[%clk 0:01:11]}  Bxe6 {[%clk 0:00:23]} 23. Qxe6+ {[%clk 0:01:12]}  Kb8 {[%clk 0:00:24]} 24. Qb3 {[%clk 0:01:12]}  Qa5 {[%clk 0:00:20]} 25. c4 {[%clk 0:01:12]}  Rf8 {[%clk 0:00:17]} 26. c5 {[%clk 0:01:11]}  Bf4 {[%clk 0:00:11]} 27. Rhe1 {[%clk 0:01:08]}  Rd8 {[%clk 0:00:10]} 28. Re4 {[%clk 0:01:05]}  Bh2 {[%clk 0:00:08]} 29. f4 {[%clk 0:01:02]}  Rf8 {[%clk 0:00:07]} 30. Rf1 {[%clk 0:00:59]}  Ka7 {[%clk 0:00:03]} 31. f5 {[%clk 0:00:59]}  g6 {[%clk 0:00:02]} 32. f6 {[%clk 0:00:57]}  Bg3 {[%clk 0:00:02]} 33. f7 {[%clk 0:00:56]} 1-0


[Site "https://www.chess.com"]

[Event "Titled Tuesday Blitz June 6 Late 2023"]
[White "Abduzhaparov"]
[Black "Vila Dupla, Aurelio"]
[BlackFideId "2203383"]
[WhiteElo "2403"]
[BlackElo "2009"]
[Result "1-0"]
[Round "5"]
[TimeControl "180+2"]
[Date "2023.06.07"]
[WhiteClock "0:00:24"]
[BlackClock "0:00:01"]
[Board "137"]

1. Nf3 {[%clk 0:02:59]}  Nf6 {[%clk 0:02:57]} 2. c4 {[%clk 0:03:00]}  g6 {[%clk 0:02:56]} 3. Nc3 {[%clk 0:03:00]}  d5 {[%clk 0:02:56]} 4. Qa4+ {[%clk 0:02:58]}  Nc6 {[%clk 0:02:54]} 5. Nd4 {[%clk 0:02:54]}  Bd7 {[%clk 0:02:42]} 6. cxd5 {[%clk 0:02:53]}  Nxd4 {[%clk 0:02:28]} 7. Qxd4 {[%clk 0:02:54]}  Bg7 {[%clk 0:02:28]} 8. e4 {[%clk 0:02:52]}  O-O {[%clk 0:02:25]} 9. e5 {[%clk 0:02:52]}  Ng4 {[%clk 0:02:20]} 10. f4 {[%clk 0:02:52]}  e6 {[%clk 0:02:16]} 11. h3 {[%clk 0:02:43]}  Nh6 {[%clk 0:02:15]} 12. g4 {[%clk 0:02:42]}  exd5 {[%clk 0:02:08]} 13. Nxd5 {[%clk 0:02:41]}  Bc6 {[%clk 0:01:55]} 14. Bg2 {[%clk 0:02:37]}  Bxd5 {[%clk 0:01:55]} 15. Qxd5 {[%clk 0:02:35]}  Qh4+ {[%clk 0:01:54]} 16. Kf1 {[%clk 0:02:30]}  c6 {[%clk 0:01:21]} 17. Qb3 {[%clk 0:02:24]}  Rad8 {[%clk 0:01:12]} 18. d4 {[%clk 0:02:20]}  Rxd4 {[%clk 0:01:08]} 19. Be3 {[%clk 0:02:20]}  Rd7 {[%clk 0:01:03]} 20. Bf2 {[%clk 0:02:17]}  Qe7 {[%clk 0:01:00]} 21. Re1 {[%clk 0:02:14]}  Rfd8 {[%clk 0:00:58]} 22. e6 {[%clk 0:02:11]}  fxe6 {[%clk 0:00:56]} 23. Rxe6 {[%clk 0:02:04]}  Qf7 {[%clk 0:00:56]} 24. Re1 {[%clk 0:01:24]}  Qxb3 {[%clk 0:00:54]} 25. axb3 {[%clk 0:01:25]}  Bxb2 {[%clk 0:00:52]} 26. Bxa7 {[%clk 0:01:21]}  Bc3 {[%clk 0:00:48]} 27. Rb1 {[%clk 0:01:06]}  Rd2 {[%clk 0:00:40]} 28. Be3 {[%clk 0:01:02]}  Ra2 {[%clk 0:00:39]} 29. f5 {[%clk 0:01:01]}  Nf7 {[%clk 0:00:37]} 30. fxg6 {[%clk 0:00:59]}  hxg6 {[%clk 0:00:36]} 31. Be4 {[%clk 0:00:56]}  Re8 {[%clk 0:00:31]} 32. Rc1 {[%clk 0:00:46]}  Bb4 {[%clk 0:00:22]} 33. Rc4 {[%clk 0:00:45]}  Ra1+ {[%clk 0:00:14]} 34. Ke2 {[%clk 0:00:43]}  Rxh1 {[%clk 0:00:13]} 35. Bxh1 {[%clk 0:00:40]}  c5 {[%clk 0:00:12]} 36. Re4 {[%clk 0:00:32]}  Rxe4 {[%clk 0:00:11]} 37. Bxe4 {[%clk 0:00:33]}  Kg7 {[%clk 0:00:11]} 38. Bxb7 {[%clk 0:00:31]}  Nd6 {[%clk 0:00:11]} 39. Bd5 {[%clk 0:00:31]}  Kf6 {[%clk 0:00:11]} 40. h4 {[%clk 0:00:30]}  Nf7 {[%clk 0:00:11]} 41. h5 {[%clk 0:00:28]}  gxh5 {[%clk 0:00:11]} 42. gxh5 {[%clk 0:00:29]}  Kg7 {[%clk 0:00:06]} 43. Bxf7 {[%clk 0:00:28]}  Kxf7 {[%clk 0:00:06]} 44. Kd3 {[%clk 0:00:28]}  Kg7 {[%clk 0:00:04]} 45. Kc4 {[%clk 0:00:28]}  Ba3 {[%clk 0:00:01]} 46. Bxc5 {[%clk 0:00:26]}  Bc1 {[%clk 0:00:01]} 47. Kd3 {[%clk 0:00:24]} 1-0


[Site "https://www.chess.com"]

[Event "Titled Tuesday Blitz June 6 Late 2023"]
[White "The_Straightforward_Rook"]
[Black "Winkels, Marcel"]
[BlackFideId "1003887"]
[WhiteElo "2385"]
[BlackElo "1900"]
[Result "0-1"]
[Round "5"]
[TimeControl "180+2"]
[Date "2023.06.07"]
[WhiteClock "0:00:13"]
[BlackClock "0:00:10"]
[Board "139"]

1. e4 {[%clk 0:02:55]}  c5 {[%clk 0:03:00]} 2. Nf3 {[%clk 0:02:54]}  d6 {[%clk 0:03:00]} 3. c3 {[%clk 0:02:54]}  Bg4 {[%clk 0:02:56]} 4. d4 {[%clk 0:02:48]}  Bxf3 {[%clk 0:02:54]} 5. Qxf3 {[%clk 0:02:47]}  cxd4 {[%clk 0:02:54]} 6. cxd4 {[%clk 0:02:47]}  Nc6 {[%clk 0:02:55]} 7. d5 {[%clk 0:02:43]}  Ne5 {[%clk 0:02:51]} 8. Bb5+ {[%clk 0:02:43]}  Nd7 {[%clk 0:02:50]} 9. Nc3 {[%clk 0:02:43]}  Nf6 {[%clk 0:02:48]} 10. O-O {[%clk 0:02:41]}  a6 {[%clk 0:02:48]} 11. Be2 {[%clk 0:02:37]}  g6 {[%clk 0:02:47]} 12. Qg3 {[%clk 0:02:30]}  Bg7 {[%clk 0:02:43]} 13. f4 {[%clk 0:02:30]}  O-O {[%clk 0:02:31]} 14. Be3 {[%clk 0:02:22]}  Rc8 {[%clk 0:02:19]} 15. Rac1 {[%clk 0:02:22]}  b5 {[%clk 0:02:17]} 16. e5 {[%clk 0:02:19]}  Ne8 {[%clk 0:02:16]} 17. e6 {[%clk 0:02:14]}  fxe6 {[%clk 0:02:10]} 18. dxe6 {[%clk 0:02:15]}  Nb6 {[%clk 0:02:08]} 19. h4 {[%clk 0:01:56]}  Nc4 {[%clk 0:02:06]} 20. Bxc4 {[%clk 0:01:53]}  Rxc4 {[%clk 0:02:03]} 21. h5 {[%clk 0:01:54]}  gxh5 {[%clk 0:01:52]} 22. Rc2 {[%clk 0:01:53]}  b4 {[%clk 0:01:34]} 23. Nd5 {[%clk 0:00:59]}  Rxc2 {[%clk 0:01:29]} 24. Bb6 {[%clk 0:00:59]}  Qa8 {[%clk 0:01:01]} 25. Nxe7+ {[%clk 0:00:59]}  Kh8 {[%clk 0:00:59]} 26. f5 {[%clk 0:00:58]}  Qb7 {[%clk 0:00:50]} 27. Bd8 {[%clk 0:00:49]}  Nf6 {[%clk 0:00:47]} 28. Ng6+ {[%clk 0:00:42]}  hxg6 {[%clk 0:00:46]} 29. e7 {[%clk 0:00:43]}  Rg8 {[%clk 0:00:42]} 30. fxg6 {[%clk 0:00:32]}  Bh6 {[%clk 0:00:37]} 31. Rf3 {[%clk 0:00:30]}  Qe4 {[%clk 0:00:30]} 32. Kh2 {[%clk 0:00:27]}  Ng4+ {[%clk 0:00:28]} 33. Kh3 {[%clk 0:00:26]}  Rc1 {[%clk 0:00:20]} 34. g7+ {[%clk 0:00:16]}  Kh7 {[%clk 0:00:17]} 35. Qxd6 {[%clk 0:00:13]}  Rh1+ {[%clk 0:00:14]} 36. Kg3 {[%clk 0:00:13]}  h4# {[%clk 0:00:10]} 0-1


[Site "https://www.chess.com"]

[Event "Titled Tuesday Blitz June 6 Late 2023"]
[White "Cluke86"]
[Black "Rama, Tejas"]
[BlackFideId "30907381"]
[WhiteElo "2137"]
[BlackElo "2089"]
[Result "1-0"]
[Round "5"]
[TimeControl "180+2"]
[Date "2023.06.07"]
[WhiteClock "0:01:09"]
[BlackClock "0:00:52"]
[Board "141"]

1. e4 {[%clk 0:03:00]}  c5 {[%clk 0:02:59]} 2. Nc3 {[%clk 0:03:00]}  Nc6 {[%clk 0:02:58]} 3. f4 {[%clk 0:03:00]}  g6 {[%clk 0:02:58]} 4. Nf3 {[%clk 0:03:00]}  Bg7 {[%clk 0:02:57]} 5. a4 {[%clk 0:03:01]}  b6 {[%clk 0:02:54]} 6. Bc4 {[%clk 0:02:50]}  Bb7 {[%clk 0:02:48]} 7. d3 {[%clk 0:02:46]}  Nh6 {[%clk 0:02:43]} 8. O-O {[%clk 0:02:44]}  O-O {[%clk 0:02:43]} 9. f5 {[%clk 0:02:38]}  Ng4 {[%clk 0:02:25]} 10. Ng5 {[%clk 0:02:31]}  Bd4+ {[%clk 0:01:59]} 11. Kh1 {[%clk 0:02:31]}  Nf2+ {[%clk 0:01:58]} 12. Rxf2 {[%clk 0:02:30]}  Bxf2 {[%clk 0:01:59]} 13. Qf3 {[%clk 0:02:21]}  Bh4 {[%clk 0:01:39]} 14. fxg6 {[%clk 0:01:54]}  Bxg5 {[%clk 0:01:21]} 15. gxf7+ {[%clk 0:01:36]}  Kh8 {[%clk 0:01:21]} 16. Bxg5 {[%clk 0:01:34]}  Ne5 {[%clk 0:01:17]} 17. Qf5 {[%clk 0:01:19]}  Nxc4 {[%clk 0:00:56]} 18. dxc4 {[%clk 0:01:18]}  Qc7 {[%clk 0:00:52]} 19. Bf6+ {[%clk 0:01:09]} 1-0


[Site "https://www.chess.com"]

[Event "Titled Tuesday Blitz June 6 Late 2023"]
[White "Tsukerman, Julia"]
[Black "sebastianmarinp"]
[WhiteFideId "2621649"]
[WhiteElo "1667"]
[BlackElo "2367"]
[Result "0-1"]
[Round "5"]
[TimeControl "180+2"]
[Date "2023.06.07"]
[WhiteClock "0:00:09"]
[BlackClock "0:00:37"]
[Board "142"]

1. e4 {[%clk 0:02:02]}  e5 {[%clk 0:02:56]} 2. Nf3 {[%clk 0:02:01]}  Nc6 {[%clk 0:02:56]} 3. Bb5 {[%clk 0:02:02]}  a6 {[%clk 0:02:57]} 4. Ba4 {[%clk 0:02:02]}  Nf6 {[%clk 0:02:57]} 5. d3 {[%clk 0:02:01]}  b5 {[%clk 0:02:53]} 6. Bb3 {[%clk 0:02:01]}  Be7 {[%clk 0:02:50]} 7. c3 {[%clk 0:02:01]}  O-O {[%clk 0:02:46]} 8. O-O {[%clk 0:02:02]}  d5 {[%clk 0:02:32]} 9. exd5 {[%clk 0:01:58]}  Nxd5 {[%clk 0:02:33]} 10. Re1 {[%clk 0:01:58]}  Bg4 {[%clk 0:02:15]} 11. Bc2 {[%clk 0:01:54]}  Qd6 {[%clk 0:01:59]} 12. Nbd2 {[%clk 0:01:52]}  f5 {[%clk 0:01:57]} 13. Nf1 {[%clk 0:01:49]}  Rad8 {[%clk 0:01:51]} 14. Ng3 {[%clk 0:01:46]}  Kh8 {[%clk 0:01:50]} 15. h3 {[%clk 0:01:45]}  Bxf3 {[%clk 0:01:39]} 16. Qxf3 {[%clk 0:01:45]}  g6 {[%clk 0:01:35]} 17. Bh6 {[%clk 0:01:41]}  Rfe8 {[%clk 0:01:34]} 18. Rad1 {[%clk 0:01:40]}  Bf6 {[%clk 0:01:33]} 19. Bb3 {[%clk 0:01:22]}  Nb6 {[%clk 0:01:29]} 20. Re2 {[%clk 0:01:11]}  Nd7 {[%clk 0:01:27]} 21. Bc2 {[%clk 0:01:02]}  Nc5 {[%clk 0:01:25]} 22. Red2 {[%clk 0:00:54]}  Ne6 {[%clk 0:01:19]} 23. Ne2 {[%clk 0:00:49]}  Ne7 {[%clk 0:01:15]} 24. Bb3 {[%clk 0:00:38]}  c5 {[%clk 0:01:05]} 25. Rc2 {[%clk 0:00:27]}  f4 {[%clk 0:00:57]} 26. g3 {[%clk 0:00:16]}  Nf5 {[%clk 0:00:54]} 27. Bxe6 {[%clk 0:00:13]}  Rxe6 {[%clk 0:00:46]} 28. gxf4 {[%clk 0:00:11]}  Nxh6 {[%clk 0:00:45]} 29. fxe5 {[%clk 0:00:11]}  Bxe5 {[%clk 0:00:43]} 30. Ng3 {[%clk 0:00:11]}  Bxg3 {[%clk 0:00:41]} 31. fxg3 {[%clk 0:00:10]}  Nf5 {[%clk 0:00:40]} 32. Rg2 {[%clk 0:00:09]}  Ne3 {[%clk 0:00:37]} 0-1


[Site "https://www.chess.com"]

[Event "Titled Tuesday Blitz June 6 Late 2023"]
[White "Mazurkiewicz, Michal"]
[Black "Vargas, Mauricio"]
[WhiteFideId "1124943"]
[BlackFideId "4404572"]
[WhiteElo "2063"]
[BlackElo "1986"]
[Result "1-0"]
[Round "5"]
[TimeControl "180+2"]
[Date "2023.06.07"]
[WhiteClock "0:01:16"]
[BlackClock "0:00:03"]
[Board "145"]

1. e4 {[%clk 0:02:58]}  d6 {[%clk 0:02:43]} 2. d4 {[%clk 0:02:57]}  c5 {[%clk 0:02:43]} 3. dxc5 {[%clk 0:02:56]}  Qa5+ {[%clk 0:02:43]} 4. Nc3 {[%clk 0:02:56]}  Qxc5 {[%clk 0:02:43]} 5. Nf3 {[%clk 0:02:56]}  Nc6 {[%clk 0:02:43]} 6. Be3 {[%clk 0:02:56]}  Qa5 {[%clk 0:02:41]} 7. Be2 {[%clk 0:02:56]}  g6 {[%clk 0:02:39]} 8. O-O {[%clk 0:02:56]}  Bg7 {[%clk 0:02:39]} 9. Nd5 {[%clk 0:02:56]}  Bxb2 {[%clk 0:02:33]} 10. Rb1 {[%clk 0:02:55]}  Bg7 {[%clk 0:02:32]} 11. Nd4 {[%clk 0:02:29]}  Nf6 {[%clk 0:02:25]} 12. Nb5 {[%clk 0:02:25]}  O-O {[%clk 0:02:19]} 13. Ndc7 {[%clk 0:02:09]}  Rb8 {[%clk 0:02:10]} 14. Bd2 {[%clk 0:02:08]}  Qxa2 {[%clk 0:02:02]} 15. Ra1 {[%clk 0:01:57]}  Qxa1 {[%clk 0:01:31]} 16. Qxa1 {[%clk 0:01:58]}  Nxe4 {[%clk 0:01:31]} 17. Qc1 {[%clk 0:01:57]}  a6 {[%clk 0:01:01]} 18. Na3 {[%clk 0:01:56]}  Nxd2 {[%clk 0:00:54]} 19. Qxd2 {[%clk 0:01:57]}  Rd8 {[%clk 0:00:19]} 20. Nd5 {[%clk 0:01:54]}  e6 {[%clk 0:00:10]} 21. Nb6 {[%clk 0:01:53]}  d5 {[%clk 0:00:07]} 22. c3 {[%clk 0:01:48]}  Ne5 {[%clk 0:00:06]} 23. Nc2 {[%clk 0:01:45]}  Bd7 {[%clk 0:00:06]} 24. Nxd7 {[%clk 0:01:43]}  Nxd7 {[%clk 0:00:06]} 25. c4 {[%clk 0:01:32]}  Rdc8 {[%clk 0:00:07]} 26. cxd5 {[%clk 0:01:30]}  exd5 {[%clk 0:00:06]} 27. Nd4 {[%clk 0:01:27]}  Ne5 {[%clk 0:00:05]} 28. Nf3 {[%clk 0:01:21]}  Rd8 {[%clk 0:00:04]} 29. Nxe5 {[%clk 0:01:21]}  Bxe5 {[%clk 0:00:05]} 30. Bf3 {[%clk 0:01:18]}  d4 {[%clk 0:00:04]} 31. Rb1 {[%clk 0:01:18]}  Bg7 {[%clk 0:00:04]} 32. Rxb7 {[%clk 0:01:15]}  Rxb7 {[%clk 0:00:03]} 33. Bxb7 {[%clk 0:01:16]}  Rb8 {[%clk 0:00:03]} 34. Be4 {[%clk 0:01:16]} 1-0


[Site "https://www.chess.com"]